bitfinex-derivatives/quotes_ETHF0:USTF0_20210406
["timestamp","ask_amount","ask_price","bid_price","bid_amount"]
[1617702660637,0.9507,2112.5,2111.9,5.90245]
[1617702660854,0.9507,2112.5,2112.0,2.0]
[1617702661324,0.9507,2112.5,2112.3,69.4212]
[1617702662424,2.90695,2112.4,2112.3,69.4212]
[1617702663328,2.90695,2112.4,2112.2,2.90695]
[1617702666234,2.90695,2112.4,2112.2,4.90695]
[1617702666530,0.9543,2112.5,2112.2,4.90695]
[1617702666731,0.9429,2113.6,2112.4,66.0983]
[1617702667449,30.0,2113.9,2112.4,68.0983]
[1617702667639,2.0,2114.0,2112.4,68.0983]
[1617702668337,0.9385,2113.8,2112.4,68.0983]
[1617702668644,0.9385,2113.8,2113.0,2.90695]
[1617702668845,2.0,2114.0,2113.0,5.28275]
[1617702669653,32.0,2114.2,2113.0,5.28275]
[1617702669847,0.9386,2113.8,2113.0,5.28275]
[1617702670639,30.0,2114.2,2113.3,2.90695]
[1617702671643,30.0,2114.2,2113.3,71.65595]
[1617702672545,2.90695,2113.4,2113.3,2.90695]
[1617702675646,30.954,2115.2,2113.3,2.90695]
[1617702675847,30.954,2115.2,2113.4,2.0]
[1617702676249,0.9363,2114.6,2113.4,2.0]
[1617702676548,1.64120311,2113.5,2113.4,2.0]
[1617702694768,1.64120311,2113.5,2113.3,2.90695]
[1617702699379,3.58630311,2113.5,2113.3,2.90695]
[1617702700577,1.64120311,2113.5,2113.3,2.90695]
[1617702702186,4.25200311,2113.5,2113.3,2.90695]
[1617702702384,4.25200311,2113.5,2113.0,94.3772]
[1617702702585,4.25200311,2113.5,2112.6,2.0]
[1617702702784,4.25200311,2113.5,2112.8,2.90695]
[1617702703384,4.25200311,2113.5,2111.5,32.0]
[1617702704886,4.25200311,2113.5,2112.9,2.90695]
[1617702706395,28.57435235,2113.8,2112.9,2.90695]
[1617702706687,28.57435235,2113.8,2112.8,57.0665]
[1617702706886,2.90695,2112.9,2112.8,57.0665]
[1617702708788,2.90695,2112.9,2112.8,59.97345]
[1617702709087,28.57435235,2113.8,2112.8,59.97345]
[1617702709891,0.9543,2113.9,2112.8,2.90695]
[1617702710089,0.9543,2113.9,2113.5,70.1218]
[1617702710888,2.90695,2113.6,2113.5,70.1218]
[1617702717107,2.90695,2113.6,2113.5,73.02875]
[1617702718104,2.90695,2113.6,2111.3,102.9388]
[1617702718105,4.88675,2113.6,2111.4,2.0]
[1617702718299,4.88675,2113.6,2112.7,58.8136]
[1617702719101,1.9798,2113.6,2113.0,2.90695]
[1617702719614,29.52805235,2113.9,2113.4,60.6482]
[1617702720030,0.9537,2113.9,2113.4,60.6482]
[1617702720304,32.0,2114.5,2113.4,60.6482]
[1617702721100,2.90695,2113.5,2113.4,63.55515]
[1617702726707,2.90695,2113.5,2113.4,60.6482]
[1617702734819,2.90695,2113.5,2113.2,4.85325]
[1617702736625,2.90695,2113.5,2113.2,2.90695]
[1617702741027,2.90695,2113.5,2112.8,2.90695]
[1617702741928,32.90695,2113.5,2112.5,61.65]
[1617702743147,32.90695,2113.5,2112.5,64.55695]
[1617702743148,2.90695,2112.6,2112.5,64.55695]
[1617702744332,2.90695,2112.6,2112.5,2.90695]
[1617702749333,2.90695,2112.6,2112.5,7.86557862]
[1617702760553,14.90695,2112.6,2112.5,7.86557862]
[1617702761655,14.90695,2112.6,2112.5,2.90695]
[1617702771172,12.0,2112.6,2112.5,2.90695]
[1617702779994,12.0,2112.6,2112.5,10.07463868]
[1617702780410,12.0,2112.6,2112.5,2.90695]
[1617702783296,6.31979551,2112.6,2112.5,2.90695]
[1617702783897,6.31979551,2112.6,2112.5,10.0755794]
[1617702785698,6.31979551,2112.6,2112.5,2.90695]
[1617702785900,8.68029551,2112.6,2112.5,2.90695]
[1617702788503,8.68029551,2112.6,2112.4,7.17308118]
[1617702789404,8.68029551,2112.6,2112.5,2.90695]
[1617702790710,6.31979551,2112.6,2112.5,2.90695]
[1617702791515,9.22674551,2112.6,2112.5,2.90695]
[1617702792014,9.22674551,2112.6,2112.5,10.07315813]
[1617702793921,9.22674551,2112.6,2112.5,2.90695]
[1617702795121,9.22674551,2112.6,2112.5,10.07301336]
[1617702797624,9.22674551,2112.6,2112.5,2.90695]
[1617702802530,12.22604551,2112.6,2112.5,2.90695]
[1617702812949,9.22674551,2112.6,2112.5,2.90695]
[1617702816050,9.22674551,2112.6,2112.5,8.97241712]
[1617702816850,9.22674551,2112.6,2112.5,6.06546712]
[1617702817453,9.22674551,2112.6,2112.4,6.06785457]
[1617702818254,39.22674551,2112.6,2112.4,6.06785457]
[1617702818453,40.18324551,2112.6,2112.4,6.06785457]
[1617702818854,40.18324551,2112.6,2112.0,10.07805086]
[1617702818855,40.18324551,2112.6,2112.5,4.96668096]
[1617702819656,39.22674551,2112.6,2112.5,4.96668096]
[1617702820063,9.22674551,2112.6,2112.5,4.96668096]
[1617702820457,9.22674551,2112.6,2112.4,6.06824058]
[1617702820965,9.22674551,2112.6,2112.1,7.16931016]
[1617702821164,9.22674551,2112.6,2112.2,7.16749886]
[1617702821560,9.22674551,2112.6,2112.5,2.90695]
[1617702823660,6.31979551,2112.6,2112.5,2.90695]
[1617702825576,9.22674551,2112.6,2112.5,2.90695]
[1617702831274,9.22674551,2112.6,2112.5,66.75725]
[1617702836183,10.18104551,2112.6,2112.5,66.75725]
[1617702836384,9.22674551,2112.6,2112.5,66.75725]
[1617702847594,6.31979551,2112.6,2112.5,66.75725]
[1617702848394,6.31979551,2112.6,2112.5,2.90695]
[1617702849094,6.31979551,2112.6,2112.5,4.90695]
[1617702850395,6.31979551,2112.6,2112.5,2.90695]
[1617702851397,0.63959102,2112.6,2112.5,2.90695]
[1617702856404,0.63959102,2112.6,2112.5,4.90695]
[1617702856606,9.102e-05,2112.6,2112.5,34.90695]
[1617702856804,0.9369,2114.6,2112.7,2.0]
[1617702857005,0.13944695,2115.1,2112.7,2.0]
[1617702857006,0.01394315,2115.0,2112.7,2.0]
[1617702857235,0.01394315,2115.0,2114.3,62.0295]
[1617702857505,0.96794211,2115.2,2114.3,62.0295]
[1617702857907,2.90695,2114.4,2114.3,62.0295]
[1617702859307,28.16197021,2114.9,2114.3,62.0295]
[1617702860009,2.90695,2114.4,2114.3,5.89675]
[1617702861810,2.90695,2114.4,2114.3,2.9898]
[1617702862009,69.0779,2114.3,2113.9,2.90695]
[1617702862711,97.23987021,2114.3,2113.7,4.95231599]
[1617702863112,97.23987021,2114.3,2113.6,4.95649241]
[1617702863911,97.23987021,2114.3,2113.8,2.90695]
[1617702864112,28.16197021,2114.3,2113.8,2.90695]
[1617702864312,28.16197021,2114.3,2113.8,58.90675]
[1617702865713,0.936,2114.5,2113.8,58.90675]
[1617702865911,0.936,2114.5,2114.1,2.90695]
[1617702866812,28.16197021,2114.8,2114.1,2.90695]
[1617702868213,2.90695,2114.2,2114.1,2.90695]
[1617702874922,31.06892021,2114.2,2114.1,2.90695]
[1617702877929,31.06892021,2114.2,2113.8,55.9998]
[1617702878230,31.06892021,2114.2,2113.9,2.90695]
[1617702885336,2.90695,2114.2,2113.9,2.90695]
[1617702894947,2.90695,2114.2,2113.9,5.59575]
[1617702896953,2.90695,2114.2,2113.9,65.19215]
[1617702908667,2.90695,2114.2,2113.9,65.03445]
[1617702914473,32.90695,2114.2,2113.9,65.03445]
[1617702916584,32.90695,2114.2,2113.9,64.32765]
[1617702917776,0.9466,2114.6,2113.9,62.2852]
[1617702918078,30.0,2114.1,2113.9,62.2852]
[1617702919278,2.90695,2114.0,2113.9,62.2852]
[1617702920282,2.90695,2114.0,2113.9,57.0327]
[1617702936011,2.90695,2114.0,2113.9,50.8951]
[1617702939816,2.90695,2114.0,2113.7,2.90695]
[1617702942020,2.90695,2114.0,2113.9,54.6772]
[1617702942418,2.90695,2114.0,2113.9,59.62337031]
[1617702943919,2.90695,2114.0,2113.9,54.6772]
[1617702952536,32.90695,2114.0,2113.8,4.94605814]
[1617702953023,32.90695,2114.0,2113.4,6.06241692]
[1617702953336,32.90695,2114.0,2113.1,6.06657428]
[1617702953697,5.69415,2113.2,2113.1,6.06657428]
[1617702953836,6.63635,2113.2,2113.1,5.11657428]
[1617702954036,35.69415,2113.2,2113.1,4.50577428]
[1617702954248,35.69415,2113.2,2113.1,3.97207428]
[1617702954436,35.69415,2113.2,2113.1,3.21937428]
[1617702954739,35.69415,2113.2,2112.8,2.90695]
[1617702955637,2.90695,2112.9,2112.8,2.90695]
[1617702958041,32.90695,2112.9,2112.8,2.90695]
[1617702959043,2.90695,2112.9,2112.8,2.90695]
[1617702961645,2.90695,2112.9,2112.5,2.90695]
[1617702963651,2.90695,2112.6,2112.5,2.90695]
[1617702963851,5.09065,2112.6,2112.5,7.86148652]
[1617702969257,5.09065,2112.6,2112.5,2.90695]
[1617702969858,5.09065,2112.6,2112.5,7.8573175]
[1617702970058,2.90695,2112.6,2112.5,7.8573175]
[1617702971161,2.90695,2112.6,2112.5,2.90695]
[1617702971358,2.90695,2112.6,2112.5,7.85605626]
[1617702971885,2.90695,2112.6,2112.5,2.90695]
[1617702973359,2.90695,2112.6,2112.5,7.8555071]
[1617702974460,2.90695,2112.6,2112.5,2.90695]
[1617702976876,60.3829,2113.0,2112.5,2.90695]
[1617702977364,60.3829,2113.0,2112.5,7.85251108]
[1617702977763,60.3829,2113.0,2112.8,2.90695]
[1617702977965,13.025,2115.1,2112.8,4.95585]
[1617702979066,100.4771,2113.8,2113.1,53.1624]
[1617702979769,2.90695,2113.2,2113.1,53.1624]
[1617702981270,2.90695,2113.2,2112.8,2.90695]
[1617702981470,3.86265,2113.2,2112.8,2.90695]
[1617702981670,3.86265,2113.2,2112.9,59.4423]
[1617702982571,2.90695,2113.2,2112.9,59.4423]
[1617702986984,16.9737,2113.1,2112.9,59.4423]
[1617702995782,46.9737,2113.1,2112.4,2.90695]
[1617702995983,2.90695,2112.5,2112.4,2.90695]
[1617702996784,64.31675,2112.5,2112.4,2.90695]
[1617702997283,67.25775,2112.5,2112.2,4.96186264]
[1617702997788,67.25775,2112.5,2112.1,4.96382881]
[1617702997984,2.90695,2112.2,2112.1,7.87077881]
[1617702999187,2.90695,2112.2,2112.1,2.90695]
[1617703005197,2.90695,2112.2,2112.1,7.86730623]
[1617703006198,72.415,2112.9,2112.1,7.86730623]
[1617703008006,72.415,2112.9,2112.4,2.90695]
[1617703010011,2.90695,2112.5,2112.4,2.90695]
[1617703019531,2.8007,2112.9,2112.4,2.90695]
[1617703019730,44.0,2113.1,2112.4,2.90695]
[1617703020033,44.0,2113.1,2112.8,2.90695]
[1617703021132,44.0,2113.1,2112.2,4.96494368]
[1617703021333,44.0,2113.1,2112.6,66.1118]
[1617703022232,44.0,2113.1,2112.8,2.90695]
[1617703022733,44.0,2113.1,2112.6,66.1118]
[1617703022933,46.1807,2113.1,2112.6,66.1118]
[1617703024032,2.90695,2112.7,2112.6,66.1118]
[1617703026736,14.0,2113.1,2112.5,2.90695]
[1617703026937,14.0,2113.1,2112.5,5.09685]
[1617703027662,14.0,2113.1,2112.6,2.0]
[1617703027840,14.0,2113.1,2112.6,6.96081029]
[1617703028053,14.0,2113.1,2113.0,2.90695]
[1617703028239,14.0,2113.1,2113.0,5.14235]
[1617703028839,8.32060201,2113.1,2113.0,2.2354]
[1617703029539,8.32060201,2113.1,2112.3,4.96345872]
[1617703029749,10.41540201,2113.1,2112.3,4.96345872]
[1617703030146,10.41540201,2113.1,2112.5,2.90695]
[1617703031542,10.41540201,2113.1,2112.7,59.2632]
[1617703032241,2.90695,2112.8,2112.7,59.2632]
[1617703039751,8.32060201,2113.1,2112.7,59.2632]
[1617703040151,8.32060201,2113.1,2112.9,2.90695]
[1617703040754,75.1004,2112.9,2112.5,4.96347641]
[1617703041154,75.1004,2112.9,2112.3,4.95808035]
[1617703041465,75.1004,2112.9,2111.7,9.73267162]
[1617703041466,75.1004,2112.9,2112.2,4.95861341]
[1617703042255,75.1004,2112.9,2112.7,4.97230259]
[1617703043065,75.1004,2112.9,2112.6,4.97391618]
[1617703043561,105.1004,2112.9,2112.6,4.97391618]
[1617703043972,105.1004,2112.9,2112.4,8.98618089]
[1617703043973,30.0,2112.9,2112.5,4.97470893]
[1617703044364,2.90695,2112.6,2112.4,8.98605452]
[1617703044658,2.90695,2112.6,2112.4,2.90695]
[1617703044858,5.39795,2112.6,2112.4,2.90695]
[1617703045064,5.39795,2112.6,2112.5,4.97275354]
[1617703045458,5.39795,2112.6,2112.5,6.07532933]
[1617703045861,5.39795,2112.6,2112.4,2.90695]
[1617703046159,2.90695,2112.6,2112.5,6.07587094]
[1617703048365,2.90695,2112.6,2112.4,8.98177178]
[1617703049064,2.90695,2112.6,2112.5,6.07388859]
[1617703049465,2.90695,2112.6,2112.4,8.98108539]
[1617703050867,5.20165,2112.6,2112.4,8.98108539]
[1617703051867,2.90695,2112.6,2112.4,8.98108539]
[1617703052770,3.86765,2112.6,2112.4,8.98108539]
[1617703052968,2.90695,2112.6,2112.4,8.98108539]
[1617703053770,2.90695,2112.6,2112.5,6.07205641]
[1617703053970,3.86675,2112.6,2112.5,6.07205641]
[1617703054170,2.90695,2112.6,2112.5,6.07205641]
[1617703054371,2.90695,2112.6,2112.4,8.9790683]
[1617703055770,2.90695,2112.6,2112.5,6.07202797]
[1617703059179,2.90695,2112.6,2112.4,8.98061827]
[1617703059388,2.90695,2112.6,2112.4,6.07366827]
[1617703059997,2.90695,2112.6,2112.5,6.07371578]
[1617703060496,2.90695,2112.6,2112.4,8.98091025]
[1617703061193,2.90695,2112.6,2112.5,6.07383685]
[1617703062582,2.90695,2112.6,2112.4,6.0748697]
[1617703064284,2.90695,2112.6,2112.4,8.9818197]
[1617703065684,2.90695,2112.6,2112.4,2.90695]
[1617703065984,2.90695,2112.6,2112.4,61.65135]
[1617703066186,2.90695,2112.6,2112.4,8.98249843]
[1617703067689,5.02915,2112.6,2112.4,8.98249843]
[1617703069389,5.02915,2112.6,2112.5,4.96845958]
[1617703070389,5.02915,2112.6,2112.4,7.87418812]
[1617703070790,35.02915,2112.6,2112.4,7.87418812]
[1617703072694,35.02915,2112.6,2112.4,2.90695]
[1617703074098,35.02915,2112.6,2112.4,7.87699305]
[1617703074397,62.0744,2112.5,2112.4,2.90695]
[1617703075117,62.0744,2112.5,2112.4,7.87784989]
[1617703078397,62.0744,2112.5,2112.4,8.82734989]
[1617703078598,62.0744,2112.5,2112.4,7.87784989]
[1617703079100,62.0744,2112.5,2112.4,7.64174989]
[1617703079398,62.0744,2112.5,2112.4,7.19854989]
[1617703080100,62.0744,2112.5,2112.4,6.72854989]
[1617703080301,62.0744,2112.5,2112.4,6.49524989]
[1617703080500,62.0744,2112.5,2112.4,2.95724989]
[1617703080701,62.0744,2112.5,2112.4,1.61014989]
[1617703080905,62.0744,2112.5,2112.2,5.3857442]
[1617703081103,62.0744,2112.5,2112.2,5.3274442]
[1617703081303,62.0744,2112.5,2112.2,2.90695]
[1617703081706,62.0744,2112.5,2112.2,2.26085]
[1617703082005,62.0744,2112.5,2112.2,0.39085]
[1617703082404,2.90695,2112.3,2112.2,0.39085]
[1617703083507,2.90695,2112.3,2112.2,1.34815]
[1617703084135,2.90695,2112.3,2112.2,0.39085]
[1617703086753,2.90695,2112.3,2112.2,1.33475]
[1617703087211,2.90695,2112.3,2112.2,0.39085]
[1617703087612,5.28335,2112.3,2112.2,0.39085]
[1617703087850,5.28335,2112.3,2111.7,7.20672444]
[1617703088412,5.28335,2112.3,2111.6,7.20752287]
[1617703088413,2.90695,2111.7,2111.6,7.20752287]
[1617703088613,5.76105,2111.7,2111.6,7.20752287]
[1617703089212,5.76105,2111.7,2111.6,75.41272287]
[1617703089413,5.76105,2111.7,2111.6,74.47952287]
[1617703090015,6.71065,2111.7,2111.6,74.47952287]
[1617703090215,5.76105,2111.7,2111.6,7.20752287]
[1617703091328,2.90695,2111.7,2111.6,7.20752287]
[1617703091819,2.90695,2111.7,2111.5,2.90695]
[1617703093025,2.90695,2111.7,2111.6,7.20723954]
[1617703093651,30.0,2112.8,2111.6,7.20723954]
[1617703094123,30.0,2112.8,2112.1,77.6517]
[1617703094325,30.0,2112.8,2112.2,4.99015774]
[1617703094524,30.0,2112.8,2112.3,4.99021096]
[1617703095725,30.0,2112.8,2112.3,5.92571096]
[1617703095925,30.0,2112.8,2112.3,4.99021096]
[1617703096525,2.90695,2112.4,2112.3,4.99021096]
[1617703097427,2.90695,2112.4,2112.2,5.93887303]
[1617703097627,2.90695,2112.4,2112.2,4.98847303]
[1617703102543,2.90695,2112.4,2112.2,5.94397303]
[1617703102842,2.90695,2112.4,2112.2,4.98847303]
[1617703104042,2.90695,2112.4,2112.2,5.94757303]
[1617703106045,2.90695,2112.4,2112.2,4.98847303]
[1617703106345,4.77495,2112.4,2112.2,4.98847303]
[1617703107747,4.77495,2112.4,2112.1,4.98542146]
[1617703109047,4.77495,2112.4,2112.1,5.92802146]
[1617703109448,4.77495,2112.4,2112.1,4.98542146]
[1617703110651,4.77495,2112.4,2112.1,5.92902146]
[1617703110950,4.77495,2112.4,2112.1,4.98542146]
[1617703111852,4.77495,2112.4,2112.0,4.98750309]
[1617703112276,4.77495,2112.4,2112.1,4.98723829]
[1617703112756,4.77495,2112.4,2112.0,4.9874048]
[1617703114655,4.77495,2112.4,2112.1,4.98680143]
[1617703115055,4.77495,2112.4,2112.0,4.98730835]
[1617703115254,4.77495,2112.4,2112.1,4.98687894]
[1617703115456,2.90695,2112.4,2112.1,4.98687894]
[1617703116055,2.90695,2112.4,2112.2,4.98402813]
[1617703118761,2.90695,2112.4,2112.1,7.89416948]
[1617703119261,2.90695,2112.4,2112.1,8.85126948]
[1617703119462,2.90695,2112.4,2112.1,7.89416948]
[1617703120063,2.90695,2112.4,2112.2,4.98698883]
[1617703120568,2.90695,2112.4,2112.2,5.92878883]
[1617703121076,2.90695,2112.4,2112.2,4.98698883]
[1617703122768,3.85875,2112.4,2112.2,4.98698883]
[1617703123067,2.90695,2112.4,2112.2,4.98698883]
[1617703125778,2.90695,2112.4,2112.3,4.98814942]
[1617703130782,2.90695,2112.4,2112.2,62.82789677]
[1617703130982,5.06865,2112.4,2112.2,62.82789677]
[1617703132984,5.06865,2112.4,2112.2,57.8455]
[1617703133684,5.06865,2112.4,2112.2,58.7843]
[1617703133885,5.06865,2112.4,2112.2,57.8455]
[1617703134386,2.90695,2112.4,2112.2,57.8455]
[1617703134686,2.90695,2112.4,2112.2,62.81675861]
[1617703145501,3.85685,2112.4,2112.2,62.81675861]
[1617703145904,2.90695,2112.4,2112.2,62.81675861]
[1617703146206,2.90695,2112.4,2112.2,57.8455]
[1617703149103,2.90695,2112.4,2112.2,62.82277075]
[1617703152307,2.90695,2112.4,2112.2,57.8455]
[1617703152811,2.90695,2112.4,2112.2,62.82240109]
[1617703153419,2.90695,2112.4,2112.2,57.8455]
[1617703153708,2.90695,2112.4,2112.2,62.822403]
[1617703154109,2.90695,2112.4,2112.2,57.8455]
[1617703154309,5.66915,2112.4,2112.2,57.8455]
[1617703154510,5.66915,2112.4,2112.2,62.82236939]
[1617703155211,5.66915,2112.4,2112.2,57.8455]
[1617703157614,5.66915,2112.4,2112.2,58.7976]
[1617703159323,5.66915,2112.4,2112.2,57.8455]
[1617703161715,2.90695,2112.4,2112.2,57.8455]
[1617703163647,2.90695,2112.4,2112.1,4.97929038]
[1617703163841,2.90695,2112.4,2112.1,6.97929038]
[1617703164118,2.90695,2112.4,2112.2,4.97455733]
[1617703164547,2.90695,2112.4,2112.3,2.0]
[1617703164818,2.90695,2112.4,2112.3,6.9718883]
[1617703165017,2.90695,2112.4,2112.3,9.8788383]
[1617703165218,2.90695,2112.4,2112.3,10.97939913]
[1617703165519,8.32060201,2113.1,2112.3,10.97939913]
[1617703166018,9.27250201,2113.1,2112.5,4.96799378]
[1617703166218,9.27250201,2113.1,2112.5,7.81489378]
[1617703166419,9.27250201,2113.1,2112.6,4.96981344]
[1617703166920,8.32060201,2113.1,2112.8,2.90695]
[1617703167120,8.32060201,2113.1,2112.8,3.84445]
[1617703167320,8.32060201,2113.1,2112.8,0.9375]
[1617703167620,8.32060201,2113.1,2112.6,4.96981344]
[1617703168023,9.27260201,2113.1,2112.6,4.96981344]
[1617703168222,8.32060201,2113.1,2112.9,60.1887]
[1617703169123,2.90695,2113.0,2112.9,60.1887]
[1617703189846,2.90695,2113.0,2112.4,7.54012938]
[1617703190646,64.394,2112.9,2112.4,7.54012938]
[1617703191347,2.90695,2112.5,2112.4,7.54012938]
[1617703196253,2.90695,2112.5,2112.4,2.571]
[1617703196654,2.90695,2112.5,2112.3,7.86995217]
[1617703196955,2.90695,2112.5,2112.4,4.96343488]
[1617703197757,2.90695,2112.5,2112.3,7.86891117]
[1617703197954,2.90695,2112.5,2112.3,9.86891117]
[1617703199856,2.90695,2112.5,2112.4,4.96098711]
[1617703201257,2.90695,2112.5,2112.3,9.86945139]
[1617703201457,2.90695,2112.5,2112.3,7.86945139]
[1617703201701,5.71875,2112.5,2112.3,7.86945139]
[1617703201957,5.71875,2112.5,2112.3,4.96250139]
[1617703202457,5.71875,2112.5,2112.0,6.06608155]
[1617703202458,5.71875,2112.5,2112.2,4.96373348]
[1617703202757,5.71875,2112.5,2112.1,4.96413785]
[1617703203261,6.65205,2112.5,2112.1,4.96413785]
[1617703203460,2.90695,2112.2,2112.1,4.96413785]
[1617703204490,62.8704,2112.1,2111.8,4.96851527]
[1617703204665,62.8704,2112.1,2111.6,6.07262978]
[1617703204666,62.8704,2112.1,2111.7,4.96502442]
[1617703205565,2.90695,2111.8,2111.7,4.96502442]
[1617703205763,6.58355,2111.8,2111.7,4.96502442]
[1617703206164,36.58355,2111.8,2111.7,4.96502442]
[1617703206364,62.1217,2111.7,2111.1,2.571]
[1617703206566,30.0,2111.6,2111.0,7.16912467]
[1617703206765,30.0,2111.6,2110.3,7.18075539]
[1617703207173,30.0,2111.6,2110.0,7.18621715]
[1617703207513,30.0,2111.6,2109.9,10.09587036]
[1617703207514,2.90695,2110.1,2109.9,10.09587036]
[1617703207872,5.42005,2110.1,2109.9,10.09587036]
[1617703208170,2.5131,2110.1,2110.0,2.0]
[1617703208370,2.5131,2110.1,2109.9,10.09587036]
[1617703208771,2.9458,2110.8,2109.9,10.09587036]
[1617703208972,2.9458,2110.8,2109.9,4.90695]
[1617703209372,30.0,2111.6,2109.9,4.90695]
[1617703209572,2.90695,2110.2,2109.9,4.90695]
[1617703209973,2.90695,2110.2,2110.0,57.8076]
[1617703210174,2.90695,2110.2,2110.1,2.0]
[1617703212377,2.90695,2110.2,2109.9,2.571]
[1617703212975,2.90695,2110.2,2110.0,2.0]
[1617703213678,57.0192,2111.4,2110.1,4.90695]
[1617703213978,57.0192,2111.4,2110.1,6.78645]
[1617703214321,57.9576,2111.4,2110.1,6.78645]
[1617703214512,57.0192,2111.4,2110.1,6.78645]
[1617703214717,30.0,2112.1,2110.1,36.78645]
[1617703214894,2.8118,2112.5,2110.1,36.78645]
[1617703215112,30.0,2113.0,2110.2,4.94743575]
[1617703215312,30.0,2113.0,2110.3,32.0]
[1617703215517,30.0,2113.0,2110.6,4.941296]
[1617703215688,30.0,2113.0,2111.7,2.90695]
[1617703216383,74.6722,2112.7,2111.2,74.8379]
[1617703216582,30.0,2112.6,2111.2,74.8379]
[1617703217036,24.31359866,2112.6,2111.2,74.8379]
[1617703217608,2.90695,2111.3,2111.2,74.8379]
[1617703217818,2.90695,2111.3,2111.0,2.0]
[1617703219687,2.90695,2111.3,2111.2,4.90695]
[1617703219886,30.0,2112.9,2111.2,4.90695]
[1617703220189,30.0,2113.0,2111.2,4.90695]
[1617703220388,30.0,2113.0,2112.0,53.4248]
[1617703220594,2.0,2113.4,2112.0,56.0073]
[1617703221691,2.0,2113.4,2112.2,2.90695]
[1617703221891,32.0,2113.4,2112.2,2.90695]
[1617703222092,32.0,2113.4,2112.0,56.0073]
[1617703222496,2.0,2113.4,2112.0,58.0073]
[1617703222697,74.5951,2113.6,2112.0,58.0073]
[1617703223599,74.5951,2113.6,2112.2,2.90695]
[1617703224995,9.28100201,2113.1,2112.2,2.90695]
[1617703225197,8.32060201,2113.1,2112.2,2.90695]
[1617703225597,2.90695,2112.3,2112.2,2.90695]
[1617703227101,2.90695,2112.3,2112.0,53.4248]
[1617703227710,2.90695,2112.3,2111.2,2.0]
[1617703227711,2.90695,2112.3,2111.5,2.90695]
[1617703228702,1.30886733,2112.3,2111.5,2.90695]
[1617703229702,2.90695,2111.6,2111.5,2.90695]
[1617703230804,5.58255,2111.6,2111.5,2.90695]
[1617703232606,5.58255,2111.6,2111.1,32.571]
[1617703232807,5.58255,2111.6,2111.1,2.571]
[1617703233506,5.58255,2111.6,2110.9,57.8714]
[1617703233708,2.6756,2111.6,2111.0,2.90695]
[1617703235511,1.9753,2112.2,2111.0,2.90695]
[1617703235809,2.90695,2111.1,2111.0,2.90695]
[1617703239214,0.98798898,2111.1,2111.0,2.90695]
[1617703240915,0.98798898,2111.1,2111.0,62.67165]
[1617703249735,0.98798898,2111.1,2110.7,2.90695]
[1617703250126,0.98798898,2111.1,2110.4,2.0]
[1617703250554,0.98798898,2111.1,2110.3,55.2734]
[1617703251828,68.3778,2111.3,2110.7,2.90695]
[1617703253730,2.90695,2110.8,2110.7,2.90695]
[1617703254141,5.38755,2110.8,2110.7,2.90695]
[1617703255236,2.90695,2110.8,2110.7,2.90695]
[1617703255638,4.87815,2110.8,2110.7,2.90695]
[1617703258641,4.87815,2110.8,2110.3,55.2734]
[1617703259742,2.90695,2110.4,2110.3,55.2734]
[1617703260146,2.90695,2110.4,2110.2,2.90695]
[1617703263750,5.53545,2110.4,2110.2,2.90695]
[1617703265658,2.90695,2110.4,2110.2,2.90695]
[1617703272207,2.90695,2110.4,2110.2,4.90695]
[1617703274369,54.7143,2110.6,2110.2,4.90695]
[1617703275904,54.7143,2110.6,2110.5,2.90695]
[1617703279780,54.7143,2110.6,2110.5,3.86625]
[1617703279978,54.7143,2110.6,2110.5,2.90695]
[1617703280278,49.02818842,2110.6,2110.5,2.90695]
[1617703283982,2.90695,2110.9,2110.5,2.90695]
[1617703286083,2.90695,2110.9,2110.8,2.90695]
[1617703287086,3.86615,2110.9,2110.8,2.90695]
[1617703287288,2.90695,2110.9,2110.8,2.90695]
[1617703289390,3.86155,2110.9,2110.8,2.90695]
[1617703289591,2.90695,2110.9,2110.8,2.90695]
[1617703292814,2.90695,2110.9,2110.8,3.84385]
[1617703293009,2.90695,2110.9,2110.8,2.90695]
[1617703296598,2.90695,2110.9,2109.9,4.97035001]
[1617703298000,58.8567,2111.0,2110.4,2.90695]
[1617703298400,58.8567,2111.0,2110.4,5.08135]
[1617703300101,2.90695,2110.5,2110.4,5.08135]
[1617703300510,2.90695,2110.5,2110.4,2.90695]
[1617703311115,3.86195,2110.5,2110.4,2.90695]
[1617703311314,2.90695,2110.5,2110.4,2.90695]
[1617703314517,2.90695,2110.5,2110.4,3.85215]
[1617703314717,2.90695,2110.5,2110.4,2.90695]
[1617703320521,4.73735,2110.5,2110.4,2.90695]
[1617703323324,4.73735,2110.5,2110.1,5.01088675]
[1617703323525,76.0776,2110.4,2110.1,5.01088675]
[1617703323929,76.0776,2110.4,2110.0,5.01211446]
[1617703324344,2.90695,2110.1,2109.9,5.01007034]
[1617703326328,2.90695,2110.1,2109.7,2.90695]
[1617703326329,2.90695,2110.1,2109.8,5.0102961]
[1617703332233,2.90695,2110.1,2109.7,7.91755896]
[1617703332435,2.90695,2109.8,2109.7,7.91755896]
[1617703332635,5.26075,2109.8,2109.7,7.91755896]
[1617703332834,6.20495,2109.8,2109.7,7.91755896]
[1617703333165,5.26075,2109.8,2109.7,7.91755896]
[1617703333359,5.26075,2109.8,2109.7,9.04174217]
[1617703334138,2.90695,2109.8,2109.7,9.04174217]
[1617703336138,2.90695,2109.8,2109.7,2.90695]
[1617703340140,2.90695,2109.8,2109.7,3.86805]
[1617703340340,2.90695,2109.8,2109.7,2.90695]
[1617703340540,2.90695,2109.8,2109.7,7.92186288]
[1617703340741,2.90695,2109.8,2109.7,2.90695]
[1617703341242,2.90695,2109.8,2109.7,3.84895]
[1617703341542,2.90695,2109.8,2109.7,8.86392094]
[1617703341741,2.1539,2110.1,2109.7,5.95697094]